fUSD/lending_fUSD_20250108
["ID","MTS","AMOUNT","RATE_DAILY","PERIOD"]
[348174551,1736365844858,-637.71192192,9.768e-05,2]
[348174552,1736365844868,-500.0,9.768e-05,2]
[348174553,1736365844878,-500.0,9.768e-05,2]
[348174554,1736365844888,-198.6,9.768e-05,2]
[348174555,1736365844897,-500.0,9.768e-05,2]
[348174556,1736365844907,-500.0,9.768e-05,2]
[348174557,1736365844916,-500.0,9.768e-05,2]
[348174558,1736365844926,-500.0,9.768e-05,2]
[348174559,1736365844936,-500.0,9.768e-05,2]
[348174562,1736365844946,-500.0,9.768e-05,2]
[348174563,1736365844959,-500.0,9.768e-05,2]
[348174565,1736365844968,-500.0,9.768e-05,2]
[348174567,1736365844978,-500.0,9.768e-05,2]
[348174568,1736365844988,-500.0,9.768e-05,2]
[348174569,1736365844998,-500.0,9.768e-05,2]
[348174570,1736365845008,-500.0,9.768e-05,2]
[348174571,1736365845018,-548.13,9.768e-05,2]
[348174572,1736365845027,-408.51504294,9.768e-05,2]
[348174573,1736365845037,-500.0,9.768e-05,2]
[348174574,1736365845046,-500.0,9.768e-05,2]
[348174575,1736365845056,-500.0,9.768e-05,2]
[348174576,1736365845066,-500.0,9.768e-05,2]
[348174577,1736365845075,-297.86,9.768e-05,2]
[348174578,1736365845092,-500.0,9.768e-05,2]
[348174579,1736365845102,-500.0,9.768e-05,2]
[348174580,1736365845112,-638.85,9.768e-05,2]
[348174581,1736365845123,-500.0,9.768e-05,2]
[348174582,1736365845132,-302.26,9.768e-05,2]
[348174583,1736365845142,-663.79,9.768e-05,2]
[348174584,1736365845151,-660.23,9.768e-05,2]
[348174585,1736365845163,-500.0,9.768e-05,2]
[348174586,1736365845173,-500.0,9.768e-05,2]
[348174587,1736365845183,-500.0,9.768e-05,2]
[348174588,1736365845193,-500.0,9.768e-05,2]
[348174589,1736365845202,-500.0,9.768e-05,2]
[348174590,1736365845214,-500.0,9.768e-05,2]
[348174591,1736365845223,-500.0,9.768e-05,2]
[348174592,1736365845233,-500.0,9.768e-05,2]
[348174593,1736365845243,-500.0,9.768e-05,2]
[348174594,1736365845253,-500.0,9.768e-05,2]
[348174595,1736365845262,-500.0,9.768e-05,2]
[348174596,1736365845272,-500.0,9.768e-05,2]
[348174597,1736365845282,-500.0,9.768e-05,2]
[348174598,1736365845291,-500.0,9.768e-05,2]
[348174599,1736365845301,-500.0,9.768e-05,2]
[348174600,1736365845310,-500.0,9.768e-05,2]
[348174601,1736365845320,-356.75208381,9.768e-05,2]
[348174602,1736365845330,-500.0,9.768e-05,2]
[348174603,1736365845340,-500.0,9.768e-05,2]
[348174604,1736365845350,-500.0,9.768e-05,2]
[348174605,1736365845359,-468.65,9.768e-05,2]
[348174606,1736365845368,-500.0,9.768e-05,2]
[348174607,1736365845377,-500.0,9.768e-05,2]
[348174608,1736365845387,-500.0,9.768e-05,2]
[348174609,1736365845396,-500.0,9.768e-05,2]
[348174610,1736365845405,-500.0,9.768e-05,2]
[348174611,1736365845414,-500.0,9.768e-05,2]
[348174612,1736365845423,-355.86,9.768e-05,2]
[348174613,1736365845433,-500.0,9.768e-05,2]
[348174614,1736365845443,-500.0,9.768e-05,2]
[348174615,1736365845452,-514.28181499,9.768e-05,2]
[348174616,1736365845463,-500.0,9.768e-05,2]
[348174617,1736365845472,-500.0,9.768e-05,2]
[348174618,1736365845481,-500.0,9.768e-05,2]
[348174619,1736365845491,-500.0,9.768e-05,2]
[348174620,1736365845500,-500.0,9.768e-05,2]
[348174621,1736365845510,-500.0,9.768e-05,2]
[348174622,1736365845519,-500.0,9.768e-05,2]
[348174623,1736365845529,-500.0,9.768e-05,2]
[348174624,1736365845538,-500.0,9.768e-05,2]
[348174625,1736365845547,-500.0,9.768e-05,2]
[348174626,1736365845557,-331.79585934,9.768e-05,2]
[348174627,1736365845566,-500.0,9.768e-05,2]
[348174628,1736365845576,-500.0,9.768e-05,2]
[348174629,1736365845585,-500.0,9.768e-05,2]
[348174630,1736365845594,-500.0,9.768e-05,2]
[348174631,1736365845603,-500.0,9.768e-05,2]
[348174632,1736365845613,-500.0,9.768e-05,2]
[348174633,1736365845623,-708.68,9.768e-05,2]
[348174634,1736365845633,-500.0,9.768e-05,2]
[348174635,1736365845642,-596.38,9.768e-05,2]
[348174636,1736365845653,-500.0,9.768e-05,2]
[348174637,1736365845662,-500.0,9.768e-05,2]
[348174638,1736365845671,-500.0,9.768e-05,2]
[348174639,1736365845681,-621.84,9.768e-05,2]
[348174640,1736365845691,-500.0,9.768e-05,2]
[348174641,1736365845700,-500.0,9.768e-05,2]
[348174642,1736365845711,-500.0,9.768e-05,2]
[348174643,1736365845720,-500.0,9.768e-05,2]
[348174644,1736365845730,-465.01,9.768e-05,2]
[348174645,1736365845739,-500.0,9.768e-05,2]
[348174646,1736365845748,-500.0,9.768e-05,2]
[348174647,1736365845758,-500.0,9.768e-05,2]
[348174648,1736365845768,-5000.0,9.799e-05,2]
[348174649,1736365845777,-1701.7451,9.8e-05,2]
[348174650,1736365845787,-150.0,9.829e-05,2]
[348174651,1736365845797,-500.0,9.898e-05,2]
[348174652,1736365845806,-500.0,9.898e-05,2]
[348174653,1736365845816,-534.5,9.898e-05,2]
[348174654,1736365845825,-500.0,9.898e-05,2]
[348174655,1736365845836,-502.86388812,9.899e-05,2]
[348174656,1736365845845,-501.09725874,9.899e-05,2]
[348174657,1736365845855,-501.11965455,9.899e-05,2]
[348174658,1736365845864,-500.0,9.899e-05,2]
[348174659,1736365845874,-501.1076926,9.899e-05,2]
[348174660,1736365845884,-501.19701899,9.899e-05,2]
[348174661,1736365845893,-501.31056126,9.899e-05,2]
[348174662,1736365845902,-577.94559217,9.899e-05,2]
[348174663,1736365846115,-500.0,9.899e-05,2]
[348174664,1736365846126,-500.0,9.899e-05,2]
[348174665,1736365846138,-501.13355545,9.899e-05,2]
[348174666,1736365846147,-501.09478224,9.899e-05,2]
[348174667,1736365846157,-500.0,9.899e-05,2]
[348174668,1736365846167,-501.12103225,9.899e-05,2]
[348174669,1736365846177,-500.78557783,9.899e-05,2]
[348174670,1736365846187,-500.0,9.899e-05,2]
[348174671,1736365846196,-500.63137883,9.899e-05,2]
[348174672,1736365846207,-500.0,9.899e-05,2]
[348174673,1736365846217,-500.82726261,9.899e-05,2]
[348174674,1736365846227,-500.43463441,9.899e-05,2]
[348174675,1736365846238,-500.0,9.899e-05,2]
[348174676,1736365846248,-500.0,9.899e-05,2]
[348174677,1736365846258,-500.0,9.899e-05,2]
[348174678,1736365846268,-500.0,9.899e-05,2]
[348174679,1736365846278,-500.0,9.899e-05,2]
[348174680,1736365846289,-500.0,9.899e-05,2]
[348174681,1736365846299,-592.53,9.899e-05,2]
[348174682,1736365846309,-290.95,9.899e-05,2]
[348174683,1736365846318,-500.0,9.899e-05,2]
[348174684,1736365846328,-500.0,9.899e-05,2]
[348174685,1736365846338,-500.0,9.899e-05,2]
[348174686,1736365846348,-500.0,9.899e-05,2]
[348174687,1736365846358,-500.0,9.899e-05,2]
[348174688,1736365846368,-500.0,9.899e-05,2]
[348174689,1736365846378,-500.0,9.899e-05,2]
[348174690,1736365846389,-500.0,9.899e-05,2]
[348174691,1736365846399,-500.0,9.899e-05,2]
[348174692,1736365846409,-500.0,9.899e-05,2]
[348174693,1736365846419,-724.99,9.899e-05,2]
[348174694,1736365846428,-546.18,9.899e-05,2]
[348174695,1736365846438,-500.0,9.899e-05,2]
[348174696,1736365846448,-500.0,9.899e-05,2]
[348174697,1736365846458,-500.0,9.899e-05,2]
[348174698,1736365846468,-590.48,9.899e-05,2]
[348174699,1736365846478,-500.0,9.899e-05,2]
[348174700,1736365846488,-500.0,9.899e-05,2]
[348174701,1736365846497,-500.0,9.899e-05,2]
[348174702,1736365846507,-500.0,9.899e-05,2]
[348174703,1736365846516,-500.0,9.899e-05,2]
[348174704,1736365846526,-603.79912995,9.899e-05,2]
[348174705,1736365846536,-567.61666858,9.899e-05,2]
[348174706,1736365846545,-697.21,9.899e-05,2]
[348174707,1736365846555,-500.0,9.899e-05,2]
[348174708,1736365846565,-500.0,9.899e-05,2]
[348174709,1736365846575,-500.0,9.899e-05,2]
[348174710,1736365846585,-500.0,9.899e-05,2]
[348174711,1736365846595,-465.88450479,9.899e-05,2]
[348174712,1736365846605,-500.0,9.899e-05,2]
[348174713,1736365846617,-993.51,9.899e-05,2]
[348174714,1736365846626,-500.0,9.899e-05,2]
[348174715,1736365846636,-520.51,9.899e-05,2]
[348174716,1736365846645,-559.52,9.899e-05,2]
[348174717,1736365846655,-500.0,9.899e-05,2]
[348174718,1736365846665,-500.0,9.899e-05,2]
[348174719,1736365846675,-500.0,9.899e-05,2]
[348174720,1736365846685,-500.0,9.899e-05,2]
[348174721,1736365846695,-500.0,9.899e-05,2]
[348174722,1736365846704,-500.0,9.899e-05,2]
[348174723,1736365846714,-500.18761941,9.899e-05,2]
[348174724,1736365846723,-1696.5,9.899e-05,2]
[348174725,1736365846733,-500.0,9.899e-05,2]
[348174726,1736365846743,-500.0,9.899e-05,2]
[348174727,1736365846752,-500.0,9.899e-05,2]
[348174728,1736365846763,-500.41532084,9.899e-05,2]
[348174729,1736365846773,-500.21095107,9.899e-05,2]
[348174730,1736365846783,-500.0,9.899e-05,2]
[348174731,1736365846792,-561.82,9.899e-05,2]
[348174733,1736365846801,-500.0,9.899e-05,2]
[348174735,1736365846810,-870.65,9.899e-05,2]
[348174736,1736365846820,-500.0,9.899e-05,2]
[348174738,1736365846829,-500.0,9.899e-05,2]
[348174740,1736365846838,-529.02,9.899e-05,2]
[348174742,1736365846849,-594.93,9.899e-05,2]
[348174744,1736365846859,-500.0,9.899e-05,2]
[348174747,1736365846869,-687.86,9.899e-05,2]
[348174748,1736365846878,-543.78,9.899e-05,2]
[348174751,1736365846888,-645.552238,9.899e-05,2]
[348174753,1736365846897,-500.0,9.899e-05,2]
[348174755,1736365846907,-500.0,9.899e-05,2]
[348174757,1736365846916,-2007.17,9.899e-05,2]
[348174758,1736365846925,-500.0,9.899e-05,2]
[348174761,1736365846935,-534.11,9.899e-05,2]
[348174762,1736365846945,-500.0,9.899e-05,2]
[348174764,1736365846954,-583.299583,9.899e-05,2]
[348174766,1736365846964,-500.0,9.899e-05,2]
[348174769,1736365846975,-2627.49,9.899e-05,2]
[348174770,1736365846987,-161.062745,9.899e-05,2]
[348174773,1736365847000,-156.728286,9.899e-05,2]
[348174775,1736365847018,-500.0,9.899e-05,2]
[348174777,1736365847028,-500.0,9.899e-05,2]
[348174778,1736365847037,-500.0,9.899e-05,2]
[348174780,1736365847047,-500.0,9.899e-05,2]
[348174782,1736365847056,-583.44,9.899e-05,2]
[348174783,1736365847066,-694.66,9.899e-05,2]
[348174784,1736365847076,-501.52093346,9.899e-05,2]
[348174785,1736365847089,-500.0,9.899e-05,2]
[348174786,1736365847099,-500.0,9.899e-05,2]
[348174787,1736365847109,-500.0,9.899e-05,2]
[348174788,1736365847118,-500.0,9.899e-05,2]
[348174789,1736365847127,-500.0,9.899e-05,2]
[348174790,1736365847136,-500.72818639,9.899e-05,2]
[348174791,1736365847145,-500.0,9.899e-05,2]
[348174792,1736365847154,-500.0,9.899e-05,2]
[348174793,1736365847164,-500.0,9.899e-05,2]
[348174794,1736365847174,-500.0,9.899e-05,2]
[348174795,1736365847184,-500.0,9.899e-05,2]
[348174796,1736365847193,-501.65621525,9.899e-05,2]
[348174797,1736365847204,-500.0,9.899e-05,2]
[348174798,1736365847214,-600.47,9.899e-05,2]
[348174799,1736365847224,-500.0,9.899e-05,2]
[348174800,1736365847234,-500.94234092,9.899e-05,2]
[348174801,1736365847243,-500.0,9.899e-05,2]
[348174802,1736365847253,-500.0,9.899e-05,2]
[348174803,1736365847262,-502.98255748,9.899e-05,2]
[348174804,1736365847272,-501.67341642,9.899e-05,2]
[348174805,1736365847281,-500.0,9.899e-05,2]
[348174806,1736365847291,-500.0,9.899e-05,2]
[348174807,1736365847300,-500.0,9.899e-05,2]
[348174808,1736365847310,-500.0,9.899e-05,2]
[348174809,1736365847319,-500.0,9.899e-05,2]
[348174810,1736365847329,-2245.45,9.899e-05,2]
[348174811,1736365847338,-539.67104774,9.899e-05,2]
[348174812,1736365847347,-500.0,9.899e-05,2]
[348174813,1736365847356,-500.0,9.899e-05,2]
[348174814,1736365847365,-500.0,9.899e-05,2]
[348174815,1736365847375,-500.0,9.899e-05,2]
[348174816,1736365847384,-500.0,9.899e-05,2]
[348174817,1736365847393,-500.0,9.899e-05,2]
[348174818,1736365847402,-500.0,9.899e-05,2]
[348174819,1736365847411,-500.0,9.899e-05,2]
[348174820,1736365847420,-500.0,9.899e-05,2]
[348174821,1736365847429,-652.26,9.899e-05,2]
[348174822,1736365847439,-500.0,9.899e-05,2]
[348174823,1736365847448,-500.0,9.899e-05,2]
[348174824,1736365847459,-500.0,9.899e-05,2]
[348174825,1736365847468,-623.89,9.899e-05,2]
[348174826,1736365847477,-673.5,9.899e-05,2]
[348174827,1736365847486,-166.330817,9.899e-05,2]
[348174828,1736365847496,-500.0,9.899e-05,2]
[348174829,1736365847506,-928.12,9.899e-05,2]
[348174830,1736365847515,-586.66,9.899e-05,2]
[348174831,1736365847525,-500.0,9.899e-05,2]
[348174832,1736365847534,-500.0,9.899e-05,2]
[348174833,1736365847544,-500.0,9.899e-05,2]
[348174834,1736365847553,-500.0,9.899e-05,2]
[348174835,1736365847562,-500.0,9.899e-05,2]
[348174836,1736365847572,-340.40263152,9.899e-05,2]
[348174837,1736365847582,-500.0,9.899e-05,2]
[348174838,1736365847592,-159.229147,9.899e-05,2]
[348174839,1736365847602,-13123.539,9.9e-05,2]
[348174840,1736365847613,-1000.0,9.9e-05,2]
[348174841,1736365847623,-190.9247,9.9e-05,2]
[348174842,1736365847632,-500.0232,9.9e-05,2]
[348174843,1736365847642,-150.0,9.916e-05,2]
[348174844,1736365847651,-150.0,9.916e-05,2]
[348174845,1736365847661,-150.0,9.916e-05,2]
[348174846,1736365847670,-150.0,9.916e-05,2]
[348174847,1736365847680,-150.0,9.946e-05,2]
[348174848,1736365847690,-150.0,9.946e-05,2]
[348174849,1736365847699,-150.0,9.946e-05,2]
[348174850,1736365847709,-255.0,9.951e-05,2]
[348174851,1736365847718,-162.51933466,9.995e-05,2]
[348174852,1736365847728,-916.75,9.998e-05,2]
[348174853,1736365847737,-1477.34,9.998e-05,2]
[348174854,1736365847747,-1243.14,9.998e-05,2]
[348174855,1736365847756,-955.45,9.998e-05,2]
[348174856,1736365847766,-2468.84,9.998e-05,2]
[348174857,1736365847775,-103868.53087109,9.999e-05,2]
[348174858,1736365847784,-416059.26899198,0.0001,2]
[348174859,1736365848066,-24144.823,0.0001,2]
[348174860,1736365848103,-76580.79311646,0.0001,2]
[348174861,1736365848114,-957.07875773,0.0001,2]
[348174862,1736365848127,-9035.98440227,0.0001,2]
[348174863,1736365848138,-85796.92999043,0.0001,2]
[348174864,1736365848406,-1500.0,9.139e-05,2]
[348174865,1736365848415,-509.50758145,9.767e-05,2]
[348174866,1736365848424,-948.53090477,9.799e-05,2]
[348174867,1736365848435,-54606.46909523,9.799e-05,2]
[348174868,1736365848445,-5173.97119139,0.0001,2]
[348174869,1736365848457,-30590.58906358,0.0001,2]
[348174870,1736365848474,-944.100185,0.0001,2]
[348174871,1736365848485,-291.41570006,0.0001,2]
[348174872,1736365848496,-481.27162833,0.0001,2]
[348174873,1736365848507,-96362.47504153,0.0001,2]
[348174874,1736365848518,-29761.05350625,0.0001,2]
[348174875,1736365848527,-190959.57378849,0.0001,2]
[348174876,1736365848536,-100322.2699,0.0001,2]
[348174877,1736365848546,-3000.0,0.0001,2]
[348174878,1736365848555,-154.04474973,0.0001,2]
[348174879,1736365848564,-218.16727057,0.0001,2]
[348174880,1736365848573,-218.16727047,0.0001,2]
[348174881,1736365848582,-218.16727047,0.0001,2]
[348174882,1736365848592,-218.16727047,0.0001,2]
[348174883,1736365848601,-150.0,0.00010003,2]
[348174884,1736365848610,-411.82,0.00010041,2]
[348174885,1736365848620,-500.0,0.00010041,2]
[348174886,1736365848629,-500.0,0.00010041,2]
[348174887,1736365848638,-500.0,0.00010041,2]
[348174888,1736365848647,-269.37,0.00010041,2]
[348174889,1736365848657,-500.0,0.00010041,2]
[348174890,1736365848666,-500.0,0.00010041,2]
[348174891,1736365848675,-583.48,0.00010041,2]
[348174892,1736365848684,-500.0,0.00010041,2]
[348174893,1736365848694,-1167.93,0.00010041,2]
[348174894,1736365848703,-2779.51,0.00010041,2]
[348174895,1736365848714,-500.0,0.00010041,2]
[348174896,1736365848723,-500.0,0.00010041,2]
[348174897,1736365848732,-645.47,0.00010041,2]
[348174898,1736365848741,-500.0,0.00010041,2]
[348174899,1736365848751,-3547.18,0.00010041,2]
[348174900,1736365848760,-1462.48,0.00010041,2]
[348174901,1736365848769,-290.5,0.00010041,2]
[348174902,1736365848779,-500.0,0.00010041,2]
[348174903,1736365848788,-293.07896265,0.00010041,2]
[348174904,1736365848798,-500.0,0.00010041,2]
[348174905,1736365848807,-2806.35,0.00010041,2]
[348174906,1736365848816,-500.0,0.00010041,2]
[348174907,1736365848826,-500.0,0.00010041,2]
[348174908,1736365848835,-774.1,0.00010041,2]
[348174909,1736365848845,-191.91519275,0.00010041,2]
[348174910,1736365848854,-500.0,0.00010041,2]
[348174911,1736365848864,-500.0,0.00010041,2]
[348174912,1736365848873,-1320.44,0.00010041,2]
[348174913,1736365848882,-500.0,0.00010041,2]
[348174914,1736365848892,-511.7,0.00010041,2]
[348174915,1736365848902,-500.0,0.00010041,2]
[348174916,1736365848911,-500.0,0.00010041,2]
[348174917,1736365848921,-500.0,0.00010041,2]
[348174918,1736365848930,-500.0,0.00010041,2]
[348174919,1736365848939,-901.56,0.00010041,2]
[348174920,1736365848949,-1570.93,0.00010041,2]
[348174921,1736365848959,-500.0,0.00010041,2]
[348174922,1736365848969,-946.26,0.00010041,2]
[348174923,1736365848978,-509.35,0.00010041,2]
[348174924,1736365848988,-338.71063934,0.00010041,2]
[348174925,1736365848997,-500.0,0.00010041,2]
[348174926,1736365849007,-569.61,0.00010041,2]
[348174927,1736365849017,-500.0,0.00010041,2]
[348174928,1736365849027,-2059.63,0.00010041,2]
[348174929,1736365849037,-694.76,0.00010041,2]
[348174930,1736365849048,-524.71,0.00010041,2]
[348174931,1736365849059,-500.0,0.00010041,2]
[348174932,1736365849068,-500.0,0.00010041,2]
[348174933,1736365849078,-629.36,0.00010041,2]
[348174934,1736365849089,-199.52374206,0.00010041,2]
[348174935,1736365849102,-500.0,0.00010041,2]
[348174936,1736365849112,-500.0,0.00010041,2]
[348174937,1736365849122,-500.0,0.00010041,2]
[348174938,1736365849132,-2672.02,0.00010041,2]
[348174939,1736365849142,-500.0,0.00010041,2]
[348174940,1736365849152,-500.0,0.00010041,2]
[348174941,1736365849163,-500.0,0.00010041,2]
[348174942,1736365849172,-500.0,0.00010041,2]
[348174943,1736365849182,-500.0,0.00010041,2]
[348174944,1736365849191,-1291.41,0.00010041,2]
[348174945,1736365849201,-237.3199279,0.00010041,2]
[348174946,1736365849212,-500.0,0.00010041,2]
[348174947,1736365849221,-540.28,0.00010041,2]
[348174948,1736365849230,-860.97,0.00010041,2]
[348174949,1736365849240,-500.0,0.00010041,2]
[348174950,1736365849250,-500.0,0.00010042,2]
[348174951,1736365849260,-500.0,0.00010042,2]
[348174952,1736365849269,-500.0,0.00010042,2]
[348174953,1736365849279,-500.0,0.00010042,2]
[348174954,1736365849290,-500.0,0.00010042,2]
[348174955,1736365849300,-500.0,0.00010042,2]
[348174956,1736365849309,-411.01,0.00010042,2]
[348174957,1736365849319,-500.0,0.00010042,2]
[348174958,1736365849329,-500.0,0.00010042,2]
[348174959,1736365849338,-500.0,0.00010042,2]
[348174960,1736365849348,-500.0,0.00010042,2]
[348174961,1736365849357,-500.0,0.00010042,2]
[348174962,1736365849367,-500.0,0.00010042,2]
[348174963,1736365849376,-500.0,0.00010042,2]
[348174964,1736365849385,-604.64,0.00010042,2]
[348174965,1736365849395,-190.86458025,0.00010042,2]
[348174966,1736365849404,-500.0,0.00010042,2]
[348174967,1736365849413,-500.0,0.00010042,2]
[348174968,1736365849422,-500.0,0.00010042,2]
[348174969,1736365849431,-348.13549595,0.00010042,2]
[348174970,1736365849441,-500.0,0.00010042,2]
[348174971,1736365849450,-500.0,0.00010042,2]
[348174972,1736365849460,-500.0,0.00010042,2]
[348174973,1736365849469,-500.0,0.00010042,2]
[348174974,1736365849478,-500.0,0.00010042,2]
[348174975,1736365849488,-500.0,0.00010042,2]
[348174976,1736365849497,-500.0,0.00010042,2]
[348174977,1736365849507,-548.13,0.00010042,2]
[348174978,1736365849516,-380.35,0.00010042,2]
[348174979,1736365849525,-500.0,0.00010042,2]
[348174980,1736365849535,-500.0,0.00010042,2]
[348174981,1736365849544,-500.0,0.00010042,2]
[348174982,1736365849552,-500.0,0.00010042,2]
[348174983,1736365849562,-638.85,0.00010042,2]
[348174984,1736365849571,-500.0,0.00010042,2]
[348174985,1736365849580,-663.79,0.00010042,2]
[348174986,1736365849588,-660.23,0.00010042,2]
[348174987,1736365849597,-500.0,0.00010042,2]
[348174988,1736365849606,-500.0,0.00010042,2]
[348174989,1736365849616,-316.06,0.00010042,2]
[348174990,1736365849626,-500.0,0.00010042,2]
[348174991,1736365849635,-500.0,0.00010042,2]
[348174992,1736365849644,-500.0,0.00010042,2]
[348174993,1736365849652,-500.0,0.00010042,2]
[348174994,1736365849662,-500.0,0.00010042,2]
[348174995,1736365849671,-500.0,0.00010042,2]
[348174996,1736365849680,-500.0,0.00010042,2]
[348174997,1736365849689,-500.0,0.00010042,2]
[348174998,1736365849698,-500.0,0.00010042,2]
[348174999,1736365849710,-500.0,0.00010042,2]
[348175000,1736365849719,-500.0,0.00010042,2]
[348175001,1736365849916,-500.0,0.00010042,2]
[348175002,1736365849926,-500.0,0.00010042,2]
[348175003,1736365849936,-250.98,0.00010042,2]
[348175004,1736365849947,-500.0,0.00010042,2]
[348175005,1736365849960,-500.0,0.00010042,2]
[348175006,1736365849969,-500.0,0.00010042,2]
[348175007,1736365849979,-375.49487205,0.00010042,2]
[348175008,1736365849991,-500.0,0.00010042,2]
[348175009,1736365850000,-500.0,0.00010042,2]
[348175010,1736365850010,-500.0,0.00010042,2]
[348175011,1736365850019,-232.7115894,0.00010042,2]
[348175012,1736365850029,-500.0,0.00010042,2]
[348175013,1736365850038,-500.0,0.00010042,2]
[348175014,1736365850048,-535.26527262,0.00010042,2]
[348175015,1736365850057,-500.0,0.00010042,2]
[348175016,1736365850066,-500.0,0.00010042,2]
[348175017,1736365850075,-500.0,0.00010042,2]
[348175018,1736365850086,-500.0,0.00010042,2]
[348175019,1736365850096,-500.0,0.00010042,2]
[348175020,1736365850105,-500.0,0.00010042,2]
[348175021,1736365850115,-708.68,0.00010042,2]
[348175022,1736365850124,-643.05,0.00010042,2]
[348175023,1736365850134,-596.38,0.00010042,2]
[348175024,1736365850144,-500.0,0.00010042,2]
[348175025,1736365850153,-500.0,0.00010042,2]
[348175026,1736365850163,-621.84,0.00010042,2]
[348175027,1736365850173,-500.0,0.00010042,2]
[348175028,1736365850183,-500.0,0.00010042,2]
[348175029,1736365850192,-500.0,0.00010042,2]
[348175030,1736365850201,-500.0,0.00010042,2]
[348175031,1736365850212,-500.0,0.00010042,2]
[348175032,1736365850222,-500.0,0.00010042,2]
[348175033,1736365850231,-500.0,0.00010042,2]
[348175034,1736365850241,-150.0,0.0001009,2]
[348175035,1736365850251,-150.0,0.0001009,2]
[348175036,1736365850260,-150.0,0.0001009,2]
[348175037,1736365850269,-163.97,0.00010137,2]
[348175038,1736365850278,-659.16,0.00010137,2]
[348175039,1736365850287,-218.16727047,0.0001016,2]
[348175040,1736365850296,-1953.91,0.00010171,2]
[348175041,1736365850305,-941.03,0.00010171,2]
[348175042,1736365850314,-629.61,0.00010171,2]
[348175043,1736365850324,-560.95,0.00010171,2]
[348175044,1736365850333,-500.0,0.00010171,2]
[348175045,1736365850342,-1027.78,0.00010171,2]
[348175046,1736365850351,-500.0,0.00010171,2]
[348175047,1736365850360,-675.99,0.00010171,2]
[348175048,1736365850369,-500.0,0.00010171,2]
[348175049,1736365850379,-632.28,0.00010171,2]
[348175050,1736365850388,-1060.25,0.00010171,2]
[348175051,1736365850397,-1341.23,0.00010171,2]
[348175052,1736365850406,-1797.78,0.00010171,2]
[348175053,1736365850417,-6440.53,0.00010171,2]
[348175054,1736365850426,-576.99,0.00010171,2]
[348175055,1736365850435,-542.69,0.00010171,2]
[348175056,1736365850444,-500.0,0.00010171,2]
[348175057,1736365850455,-2349.4,0.00010171,2]
[348175058,1736365850464,-500.0,0.00010171,2]
[348175059,1736365850474,-588.69,0.00010171,2]
[348175060,1736365850483,-872.72,0.00010171,2]
[348175061,1736365850493,-818.36,0.00010171,2]
[348175062,1736365850502,-869.4,0.00010171,2]
[348175063,1736365850511,-500.0,0.00010171,2]
[348175064,1736365850520,-1000.0,0.00010171,2]
[348175065,1736365850529,-557.89,0.00010171,2]
[348175066,1736365850538,-500.0,0.00010171,2]
[348175067,1736365850547,-1857.78,0.00010171,2]
[348175068,1736365850556,-1274.8,0.00010171,2]
[348175069,1736365850565,-353.93873624,0.00010172,2]
[348175070,1736365850574,-534.5,0.00010172,2]
[348175071,1736365850583,-500.0,0.00010172,2]
[348175072,1736365850592,-500.0,0.00010173,2]
[348175073,1736365850601,-500.0,0.00010173,2]
[348175074,1736365850611,-500.0,0.00010173,2]
[348175075,1736365850621,-500.0,0.00010173,2]
[348175076,1736365850631,-500.0,0.00010173,2]
[348175077,1736365850640,-500.0,0.00010173,2]
[348175078,1736365850649,-500.0,0.00010173,2]
[348175079,1736365850659,-500.0,0.00010173,2]